Workbook

Sheet Cash Outflow % (hidden)
A1: CASH OUTFLOW- DISTRICT ONE HOUSING SHEIKHUPURA
A3: Task | B3: Estimated Cost + 5% Con. | C3: 2022 | G3: 2023 | S3: 2024
C4: September | D4: October | E4: November | F4: December | G4: January | H4: February | I4: March | J4: April | K4: May | L4: June | M4: July | N4: August | O4: September | P4: October | Q4: November | R4: December | S4: January | T4: February | U4: March
A5: Road Cut & Fill | B5: 65.95M | C5: 10% | D5: 30% | E5: 30% | F5: 30%
A6: Entrance Gate | B6: =#REF! ->  | F6: 30% | G6: 15% | H6: 10% | I6: 10% | J6: 20% | K6: 10% | L6: 5%
A7: Sewerage | B7: =#REF! ->  | D7: 35% | E7: 30% | F7: 25% | G7: 10%
A8: Street Lights | B8: =#REF! ->  | G8: 85% | H8: 15%
A9: Disposal Station | B9: =#REF! ->  | G9: 30% | H9: 25% | I9: 10% | J9: 10% | K9: 20% | L9: 5%
A10: Water Supply Network | B10: =#REF! ->  | E10: 35% | F10: 30% | G10: 20% | H10: 15%
A11: OHWT + Tubewell | B11: =#REF! ->  | H11: 20% | I11: 15% | J11: 15% | K11: 10% | L11: 10% | M11: 10% | N11: 15% | O11: 5%
A12: Road Formation (Structure) + Parking Areas | B12: 43.36 M | I12: 30% | J12: 30% | K12: 25% | L12: 15%
A13: External Electrification | B13: =#REF! ->  | M13: 25% | N13: 40% | O13: 20% | P13: 15%
A14: Gas Supply Network | B14: =#REF! ->  | M14: 35% | N14: 25% | O14: 20% | P14: 20%
A15: Footpath (Both sides of road) | B15: =#REF! ->  | N15: 35% | O15: 35% | P15: 15% | Q15: 15%
A16: Road Pavement (Asphalt & Marking) | B16: 65.88 M | Q16: 90% | R16: 10%
A17: Horticulture | B17: =#REF! ->  | K17: 20% | L17: 20% | M17: 10% | N17: 10% | O17: 10% | P17: 10% | Q17: 10% | R17: 10%
A18: Mosque | B18: =#REF! ->  | L18: 20% | M18: 15% | N18: 10% | O18: 10% | P18: 10% | Q18: 15% | R18: 5% | S18: 10% | T18: 5%
A19: Society Office | B19: =#REF! ->  | M19: 20% | N19: 15% | O19: 15% | P19: 15% | Q19: 10% | R19: 15% | S19: 10%
A20: Misc. + Project Closing | B20: =#REF! ->  | R20: 25% | S20: 25% | T20: 25% | U20: 25%
A21: Overheads | B21: 72.00 M | C21: 5.25% | D21: 5.25% | E21: 5.25% | F21: 5.25% | G21: 5.25% | H21: 5.25% | I21: 5.25% | J21: 5.25% | K21: 5.25% | L21: 5.25% | M21: 5.25% | N21: 5.25% | O21: 5.25% | P21: 5.25% | Q21: 5.25% | R21: 5.25% | S21: 5.25% | T21: 5.25% | U21: 5.50%
A22: Total Amount | B22: =SUM(B5:B21) -> 
A27: CASH OUTFLOW- DISTRICT ONE HOUSING SHEIKHUPURA
A29: Task | B29: =B3 -> Estimated Cost + 5% Con. | C29: 2022 | G29: 2023 | S29: 2024
C30: September | D30: October | E30: November | F30: December | G30: January | H30: February | I30: March | J30: April | K30: May | L30: June | M30: July | N30: August | O30: September | P30: October | Q30: November | R30: December | S30: January | T30: February | U30: March
A31: Road Cut & Fill | B31: =B5 -> 65.95M | C31: =B5*C5 -> 6.59M | D31: =B5*D5 -> 19.78M | E31: =B5*E5 -> 19.78M | F31: =B5*F5 -> 19.78M
A32: Entrance Gate | F32: =B6*F6 ->  | G32: =B6*G6 ->  | H32: =B6*H6 ->  | I32: =B6*I6 ->  | J32: =B6*J6 ->  | K32: =B6*K6 ->  | L32: =B6*L6 -> 
A33: Sewerage | D33: =B7*D7 ->  | E33: =B7*E7 ->  | F33: =B7*F7 ->  | G33: =B7*G7 -> 
A34: Street Lights | G34: =B8*G8 ->  | H34: =B8*H8 -> 
A35: Disposal Station | G35: =B9*G9 ->  | H35: =B9*H9 ->  | I35: =B9*I9 ->  | J35: =B9*J9 ->  | K35: =B9*K9 ->  | L35: =B9*L9 -> 
A36: Water Supply Network | E36: =B10*E10 ->  | F36: =B10*F10 ->  | G36: =B10*G10 ->  | H36: =B10*H10 -> 
A37: OHWT + Tubewell | H37: =B11*H11 ->  | I37: =B11*I11 ->  | J37: =B11*J11 ->  | K37: =B11*K11 ->  | L37: =B11*L11 ->  | M37: =B11*M11 ->  | N37: =B11*N11 ->  | O37: =B11*O11 -> 
A38: Road Formation (Structure) + Parking Areas | B38: 43.36M | I38: =B12*I12 -> 13.01M | J38: =B12*J12 -> 13.01M | K38: =B12*K12 -> 10.84M | L38: =B12*L12 -> 6.50M
A39: External Electrification | M39: =B13*M13 ->  | N39: =B13*N13 ->  | O39: =B13*O13 ->  | P39: =B13*P13 -> 
A40: Gas Supply Network | M40: =B14*M14 ->  | N40: =B14*N14 ->  | O40: =B14*O14 ->  | P40: =B14*P14 -> 
A41: Footpath (Both sides of road) | N41: =B15*N15 ->  | O41: =B15*O15 ->  | P41: =B15*P15 ->  | Q41: =B15*Q15 -> 
A42: Road Pavement (Asphalt & Marking) | B42: 65.88M | Q42: =B16*Q16 -> 59.29M | R42: =B16*R16 -> 6.59M
A43: Horticulture | K43: =B17*K17 ->  | L43: =B17*L17 ->  | M43: =B17*M17 ->  | N43: =B17*N17 ->  | O43: =B17*O17 ->  | P43: =B17*P17 ->  | Q43: =B17*Q17 -> 
A44: Mosque | L44: =B18*L18 ->  | M44: =B18*M18 ->  | N44: =B18*N18 ->  | O44: =B18*O18 ->  | P44: =B18*P18 ->  | Q44: =B18*Q18 ->  | S44: =B18*S18 ->  | T44: =B18*T18 -> 
A45: Society Office | M45: =B19*M19 ->  | N45: =B19*N19 ->  | O45: =B19*O19 ->  | P45: =B19*P19 ->  | Q45: =B19*Q19 ->  | S45: =B19*S19 -> 
A46: Misc. + Project Closing | S46: =B20*S20 ->  | T46: =B20*T20 ->  | U46: =B20*U20 -> 
A47: Overheads | B47: 72.00M | C47: =B21*C21 -> 3.78M | D47: =B21*D21 -> 3.78M | E47: =B21*E21 -> 3.78M | F47: =B21*F21 -> 3.78M | G47: =B21*G21 -> 3.78M | H47: =B21*H21 -> 3.78M | I47: =B21*I21 -> 3.78M | J47: =B21*J21 -> 3.78M | K47: =B21*K21 -> 3.78M | L47: =B21*L21 -> 3.78M | M47: =B21*M21 -> 3.78M | N47: =B21*N21 -> 3.78M | O47: =B21*O21 -> 3.78M | P47: =B21*P21 -> 3.78M | Q47: =B21*Q21 -> 3.78M | R47: 3.78M | S47: =B21*S21 -> 3.78M | T47: =B21*T21 -> 3.78M | U47: =B21*U21 -> 3.96M
A48: Total Amount | B48: =SUM(B31:B47) ->  | C48: =SUM(C31:C47) -> 10.37M | D48: =SUM(D31:D47) ->  | E48: =SUM(E31:E47) ->  | U48: =SUM(U31:U47) -> 

Sheet Cash Outflow
A1: BUDGETED CASH FLOW IN PERCENTAGE - PROJECT NAME
A3: Task | B3: Estimated Cost | C3: 2023 | J3: 2024
C4: Jun | D4: Jul | E4: Aug | F4: Sep | G4: Oct | H4: Nov | I4: Dec | J4: Jan | K4: Feb | L4: Mar
A5: Task-1 | B5: =8558683-1500000 -> 7.06M$ | D5: 97% | E5: 3% | M5: =SUM(C5:L5) -> 100.00%
A6: Task-2 | B6: =2068781-200000 -> 1.87M$ | C6: 38% | D6: 40% | E6: 18% | F6: 4% | M6: 100.00%
A7: Task-3 | B7: =8677145-1800000 -> 6.88M$ | E7: 64% | F7: 36% | M7: 100.00%
A8: Task-4 | B8: =311444386-300000 -> 311.14M$ | D8: 6% | E8: 12% | F8: 18% | G8: 24% | H8: 22% | I8: 12% | J8: 5% | K8: 1% | M8: 100.00%
A9: Task-5 | B9: 15.16M$ | E9: 15% | F9: 48% | G9: 37% | M9: 100.00%
A10: Task-6 | B10: =39312757-1500000 -> 37.81M$ | D10: 2% | E10: 17% | F10: 17% | G10: 17% | H10: 17% | I10: 17% | J10: 13% | M10: 100.00%
A11: Task-7 | B11: =72313084-600000 -> 71.71M$ | F11: 11% | G11: 26% | H11: 25% | I11: 23% | J11: 15% | M11: 100.00%
A12: Task-8 | B12: 21.10M$ | F12: 10% | G12: 24% | H12: 22% | I12: 23% | J12: 21% | M12: 100.00%
A13: Task-9 | B13: =31786809-200000 -> 31.59M$ | F13: 2% | G13: 24% | H13: 22% | I13: 24% | J13: 23% | K13: 5% | M13: 100.00%
A14: Task-10 | B14: =38319921-400000 -> 37.92M$ | G14: 16% | H14: 24% | I14: 24% | J14: 26% | K14: 10% | M14: 100.00%
A15: Task-11 | B15: =61383040-500000 -> 60.88M$ | C15: 6% | D15: 12% | E15: 12% | F15: 12% | G15: 12% | H15: 12% | I15: 12% | J15: 12% | K15: 10% | M15: 100.00%
A16: Task-12 | B16: =5712730-150000 -> 5.56M$ | G16: 30% | H16: 70% | M16: 100.00%
A17: Task-13 | B17: =24498744-620000 -> 23.88M$ | H17: 11% | I17: 44% | J17: 44% | K17: 1% | M17: 100.00%
A18: Task-14 | B18: =6984553-500000 -> 6.48M$ | D18: 36% | E18: 38% | F18: 26% | M18: 100.00%
A19: Task-15 | B19: =8273990-150000 -> 8.12M$ | E19: 16% | F19: 32% | G19: 34% | H19: 18% | M19: 100.00%
A20: Task-16 | B20: =9608800-300000 -> 9.31M$ | F20: 8% | G20: 30% | H20: 30% | I20: 30% | J20: 2% | M20: 100.00%
A21: Task-17 | B21: 3.15M$ | H21: 13% | I21: 30% | J21: 30% | K21: 27% | M21: 100.00%
A22: Task-18 | B22: 19.29M$ | J22: 41% | K22: 41% | L22: 18% | M22: 100.00%
A23: Total Amount | B23: =SUM(B5:B22) -> 678.93M$
A28: BUDGETED CASH FLOW - PROJECT NAME
A30: Task | B30: =B3 -> Estimated Cost | C30: 2023 | J30: 2024
C31: Jun | D31: Jul | E31: Aug | F31: Sep | G31: Oct | H31: Nov | I31: Dec | J31: Jan | K31: Feb | L31: Mar
A32: Task-1 | B32: =8558683-1500000 -> 7.06M$ | D32: =+B32*D5 -> 6.85M$ | E32: =$B32*E5 -> 0.21M$ | M32: =SUM(C32:L32) -> 7.06M
A33: Task-2 | B33: =2068781-200000 -> 1.87M$ | C33: =+B33*C6 -> 0.71M$ | D33: =+$B33*D6 -> 0.75M$ | E33: =+$B33*E6 -> 0.34M$ | F33: =$B33*F6 -> 0.07M$ | M33: 1.87M
A34: Task-3 | B34: =8677145-1800000 -> 6.88M$ | E34: =+B34*E7 -> 4.40M$ | F34: =$B34*F7 -> 2.48M$ | M34: 6.88M
A35: Task-4 | B35: =311444386-300000 -> 311.14M$ | D35: =+B35*D8 -> 18.67M$ | E35: =+B35*E8 -> 37.34M$ | F35: =$B35*F8 -> 56.01M$ | G35: =$B35*G8 -> 74.67M$ | H35: 68.45M$ | I35: 37.34M$ | J35: 15.56M$ | K35: 3.11M$ | M35: 311.14M
A36: Task-5 | B36: 15.16M$ | E36: 2.27M$ | F36: 7.28M$ | G36: 5.61M$ | M36: 15.16M
A37: Task-6 | B37: =39312757-1500000 -> 37.81M$ | D37: 0.76M$ | E37: 6.43M$ | F37: 6.43M$ | G37: 6.43M$ | H37: 6.43M$ | I37: 6.43M$ | J37: 4.92M$ | M37: 37.81M
A38: Task-7 | B38: =72313084-600000 -> 71.71M$ | F38: 7.89M$ | G38: 18.65M$ | H38: 17.93M$ | I38: 16.49M$ | J38: 10.76M$ | M38: 71.71M
A39: Task-8 | B39: 21.10M$ | F39: 2.11M$ | G39: 5.06M$ | H39: 4.64M$ | I39: 4.85M$ | J39: 4.43M$ | M39: 21.10M
A40: Task-9 | B40: =31786809-200000 -> 31.59M$ | F40: 0.63M$ | G40: 7.58M$ | H40: 6.95M$ | I40: 7.58M$ | J40: 7.26M$ | K40: 1.58M$ | M40: 31.59M
A41: Task-10 | B41: =38319921-400000 -> 37.92M$ | G41: 6.07M$ | H41: 9.10M$ | I41: 9.10M$ | J41: 9.86M$ | K41: 3.79M$ | M41: 37.92M
A42: Task-11 | B42: =61383040-500000 -> 60.88M$ | C42: =+B42*C15 -> 3.65M$ | D42: =+B42*D15 -> 7.31M$ | E42: =+B42*E15 -> 7.31M$ | F42: =$B42*F15 -> 7.31M$ | G42: 7.31M$ | H42: 7.31M$ | I42: 7.31M$ | J42: 7.31M$ | K42: 6.09M$ | M42: 60.88M
A43: Task-12 | B43: =5712730-150000 -> 5.56M$ | G43: 1.67M$ | H43: 3.89M$ | M43: 5.56M
A44: Task-13 | B44: =24498744-620000 -> 23.88M$ | H44: 2.63M$ | I44: 10.51M$ | J44: 10.51M$ | K44: 0.24M$ | M44: 23.88M
A45: Task-14 | B45: =6984553-500000 -> 6.48M$ | D45: 2.33M$ | E45: 2.46M$ | F45: 1.69M$ | M45: 6.48M
A46: Task-15 | B46: =8273990-150000 -> 8.12M$ | E46: 1.30M$ | F46: 2.60M$ | G46: 2.76M$ | H46: =$B46*H19 -> 1.46M$ | M46: 8.12M
A47: Task-16 | B47: =9608800-300000 -> 9.31M$ | F47: 0.74M$ | G47: 2.79M$ | H47: 2.79M$ | I47: 2.79M$ | J47: 0.19M$ | M47: 9.31M
A48: Task-17 | B48: 3.15M$ | H48: 0.41M$ | I48: 0.95M$ | J48: 0.95M$ | K48: 0.85M$ | M48: 3.15M
A49: Task-18 | B49: 19.29M$ | J49: 7.91M$ | K49: 7.91M$ | L49: 3.47M$ | M49: 19.29M
A50: Total Amount | B50: =SUM(B32:B49) -> 678.93M$ | C50: =SUM(C32:C49) -> 4.36M$ | D50: =SUM(D32:D49) -> 36.66M$ | E50: 62.06M$ | F50: 95.23M$ | G50: 138.60M$ | H50: 131.99M$ | I50: 103.35M$ | J50: 79.64M$ | K50: 23.57M$ | L50: 3.47M$ | M50: =SUM(M32:M49) -> 678.93M
A51: % of Total Project Cost | B51: =SUM(C51:L51) -> 100% | C51: 0.65% | D51: 6% | E51: 9% | F51: 14% | G51: 20% | H51: 19% | I51: 15% | J51: 12% | K51: 3% | L51: 1%
A52: Note : Data is only Sample

Sheet S-Curve
B4: Month | C4: 2023-06-01 | D4: 2023-07-01 | E4: 2023-08-01 | F4: 2023-09-01 | G4: 2023-10-01 | H4: 2023-11-01 | I4: 2023-12-01 | J4: 2024-01-01 | K4: 2024-02-01 | L4: 2024-03-01
B5: Budgeted Cost | C5: =+'Cash Outflow '!C50 -> 4.36M$ | D5: ='Cash Outflow '!D50 -> 36.66M$ | E5: ='Cash Outflow '!E50 -> 62.06M$ | F5: ='Cash Outflow '!F50 -> 95.23M$ | G5: ='Cash Outflow '!G50 -> 138.60M$ | H5: ='Cash Outflow '!H50 -> 131.99M$ | I5: ='Cash Outflow '!I50 -> 103.35M$ | J5: ='Cash Outflow '!J50 -> 79.64M$ | K5: ='Cash Outflow '!K50 -> 23.57M$ | L5: ='Cash Outflow '!L50 -> 3.47M$
B6: Actual | C6: 4.26M$ | D6: 26.45M$ | E6: 50.84M$ | F6: 85.26M$ | G6: 110.56M$ | H6: 143.90M$ | I6: 102.35M$ | J6: 99.82M$ | K6: 33.22M$ | L6: 5.25M$
B7: Cum Budgeted Cost | C7: =C5 -> 4.36M$ | D7: =D5+C7 -> 41.02M$ | E7: =E5+D7 -> 103.08M$ | F7: 198.31M$ | G7: 336.91M$ | H7: 468.90M$ | I7: 572.25M$ | J7: 651.89M$ | K7: 675.46M$ | L7: 678.93M$
B8: Cum Actual Cost | C8: =C6 -> 4.26M$ | D8: =D6+C8 -> 30.72M$ | E8: =E6+D8 -> 81.56M$ | F8: =F6+E8 -> 166.81M$ | G8: =G6+F8 -> 277.38M$ | H8: =H6+G8 -> 421.27M$ | I8: =+H8+I6 -> 523.62M$ | J8: =+I8+J6 -> 623.44M$ | K8: =+J8+K6 -> 656.66M$ | L8: =+K8+L6 -> 661.92M$
B9: Cum Budgeted Cost % | C9: =C7/SUM($C$5:$L$5) -> 0.64% | D9: =D7/SUM($C$5:$L$5) -> 6.04% | E9: 15.18% | F9: 29.21% | G9: 49.62% | H9: 69.06% | I9: 84.29% | J9: 96.02% | K9: 99.49% | L9: 100.00%
B10: Cum Actual Cost % | C10: =C8/SUM($C$6:$L$6) -> 0.64% | D10: =D8/SUM($C$6:$L$6) -> 4.64% | E10: 12.32% | F10: 25.20% | G10: =G8/SUM($C$6:$L$6) -> 41.90% | H10: 63.64% | I10: 79.11% | J10: 94.19% | K10: =K8/SUM($C$6:$L$6) -> 99.21% | L10: =L8/SUM($C$6:$L$6) -> 100.00%
